bitfinex/quotes_BTCUSD_20241103
["timestamp","ask_amount","ask_price","bid_price","bid_amount"]
[1730647970826,0.00844747,67631.0,67630.0,0.14579704]
[1730647971672,0.00844747,67631.0,67630.0,0.15979704]
[1730647972005,0.005,67631.0,67630.0,0.15979704]
[1730647972542,0.006,67631.0,67630.0,0.17179704]
[1730647972779,0.006,67631.0,67630.0,0.15979704]
[1730647972780,0.005,67631.0,67630.0,0.15979704]
[1730647972998,1.11600622,67631.0,67630.0,0.16979704]
[1730647973247,1.11700622,67631.0,67630.0,0.15579704]
[1730647973725,1.11800622,67631.0,67630.0,0.16279704]
[1730647973968,1.12300622,67631.0,67630.0,0.16279704]
[1730647975379,1.12300622,67631.0,67630.0,0.31066004]
[1730647975650,1.12300622,67631.0,67630.0,0.16279704]
[1730647976524,1.12300622,67631.0,67630.0,0.16361304]
[1730647977191,1.11300622,67631.0,67630.0,0.31147604]
[1730647977418,1.11800622,67631.0,67630.0,0.31147604]
[1730647977632,1.06800622,67631.0,67630.0,0.31147604]
[1730647979651,1.06300622,67631.0,67630.0,0.31147604]
[1730647979858,1.06800622,67631.0,67630.0,0.31147604]
[1730647981033,1.06800622,67631.0,67630.0,0.16361304]
[1730647981259,1.20150622,67631.0,67630.0,0.16361304]
[1730647983765,1.34936722,67631.0,67630.0,0.16361304]
[1730647984198,1.34936722,67631.0,67630.0,0.017816]
[1730647985101,1.35136722,67631.0,67630.0,0.017816]
[1730647985318,1.35636722,67631.0,67630.0,0.017816]
[1730647985543,1.35636722,67631.0,67599.0,0.29590712]
[1730647985544,0.1405,67625.0,67614.0,0.06736918]
[1730647985756,0.1405,67625.0,67614.0,0.02314551]
[1730647985757,0.005,67615.0,67614.0,0.02314551]
[1730647986843,0.005,67615.0,67614.0,0.03514551]
[1730647986844,0.01,67615.0,67614.0,0.03514551]
[1730647987059,0.01,67615.0,67614.0,0.012]
[1730647987060,0.16134347,67615.0,67614.0,0.012]
[1730647987269,0.01344747,67615.0,67613.0,0.1]
[1730647987701,0.01344747,67615.0,67611.0,0.147904]
[1730647987702,0.01444747,67615.0,67614.0,0.012]
[1730647987931,0.25076542,67615.0,67614.0,0.25779704]
[1730647988154,0.21184347,67615.0,67614.0,0.25779704]
[1730647988813,0.21084347,67615.0,67614.0,0.24579704]
[1730647989240,0.21184347,67615.0,67614.0,0.24661404]
[1730647989675,0.21384347,67615.0,67614.0,0.25361404]
[1730647990746,1.10913769,67615.0,67614.0,0.25361404]
[1730647990961,1.25358622,67615.0,67614.0,0.25361404]
[1730647991189,1.10569022,67615.0,67614.0,0.40151204]
[1730647991477,1.10069022,67615.0,67614.0,0.40151204]
[1730647991694,1.05119022,67615.0,67614.0,0.40151204]
[1730647991913,0.003,67615.0,67614.0,0.44569778]
[1730647992132,0.003,67615.0,67614.0,0.46779065]
[1730647992558,0.003,67615.0,67614.0,0.61212758]
[1730647993472,0.003,67615.0,67614.0,0.67174897]
[1730647994349,0.002,67615.0,67614.0,0.66574897]
[1730647994571,0.003,67615.0,67614.0,0.66574897]
[1730647995057,0.001,67615.0,67614.0,0.66474897]
[1730647995574,0.001,67615.0,67614.0,0.67874897]
[1730647995575,0.002,67615.0,67614.0,0.67874897]
[1730647995809,0.001,67615.0,67614.0,0.66474897]
[1730647996253,1.04319022,67617.0,67616.0,0.247893]
[1730647996469,1.04319022,67617.0,67616.0,0.64849384]
[1730647996687,1.04319022,67626.0,67617.0,0.1]
[1730647996897,1.04319022,67626.0,67625.0,0.247874]
[1730647997126,1.04319022,67626.0,67625.0,0.39367104]
[1730647998231,1.04319022,67626.0,67625.0,0.55089077]
[1730647998441,0.005,67637.0,67625.0,0.55089077]
[1730647998442,1.04319022,67630.0,67629.0,0.247865]
[1730647998652,1.04319022,67630.0,67629.0,0.39366204]
[1730647999126,1.04319022,67630.0,67629.0,0.60312053]
[1730647999369,1.04319022,67630.0,67629.0,0.45994632]
[1730647999594,1.04319022,67630.0,67629.0,0.53676384]
[1730647999826,1.04419022,67630.0,67629.0,0.61705035]
[1730648000041,1.04419022,67630.0,67629.0,0.63041614]
[1730648000282,1.04519022,67630.0,67629.0,0.56449394]
[1730648000501,1.04519022,67630.0,67629.0,0.67496621]
[1730648000727,1.04519022,67630.0,67629.0,0.56449394]
[1730648001609,1.04519022,67630.0,67629.0,0.6084825]
[1730648001830,1.04519022,67630.0,67629.0,0.56531094]
[1730648002056,1.04519022,67630.0,67629.0,0.67577959]
[1730648002285,1.04519022,67630.0,67629.0,0.56531094]
[1730648002730,1.04519022,67630.0,67629.0,0.65368936]
[1730648003361,1.04519022,67630.0,67629.0,0.65359675]
[1730648003778,1.05019022,67630.0,67629.0,0.65359675]
[1730648003987,1.20557264,67630.0,67629.0,0.17461404]
[1730648004192,1.10089022,67630.0,67629.0,0.17461404]
[1730648004642,1.24875322,67630.0,67629.0,0.17461404]
[1730648004857,1.24875322,67630.0,67629.0,0.028817]
[1730648005291,1.25075322,67630.0,67629.0,0.028817]
[1730648005519,1.32455322,67630.0,67629.0,0.028817]
[1730648005737,1.32255322,67630.0,67629.0,0.000817]
[1730648005953,1.17569022,67630.0,67629.0,0.013817]
[1730648006163,1.17669022,67630.0,67629.0,0.16961404]
[1730648006380,1.17069022,67630.0,67629.0,0.30447904]
[1730648006594,1.17469022,67630.0,67629.0,0.29647904]
[1730648007292,1.16969022,67630.0,67629.0,0.29647904]
[1730648007521,1.17469022,67630.0,67629.0,0.29647904]
[1730648007771,1.16969022,67630.0,67629.0,0.29647904]
[1730648008004,1.04819022,67630.0,67629.0,0.29647904]
[1730648008452,1.04819022,67630.0,67629.0,0.29447904]
[1730648008673,1.04919022,67630.0,67629.0,0.30647904]
[1730648008911,1.05019022,67630.0,67629.0,0.31647904]
[1730648009145,1.04919022,67630.0,67629.0,0.30447904]
[1730648009372,1.05019022,67630.0,67629.0,0.31647904]
[1730648009609,1.04919022,67630.0,67629.0,0.30647904]
[1730648009828,1.05019022,67630.0,67629.0,0.32047904]
[1730648011343,1.05019022,67630.0,67629.0,0.36470365]
[1730648012240,1.04519022,67630.0,67629.0,0.36470365]
[1730648012729,1.05019022,67630.0,67629.0,0.36470365]
[1730648012964,1.05019022,67630.0,67629.0,0.32047904]
[1730648013701,1.05019022,67630.0,67629.0,0.36470365]
[1730648013941,1.05182422,67630.0,67629.0,0.36470365]
[1730648014867,1.05182422,67630.0,67629.0,0.63070002]
[1730648015109,1.05182422,67630.0,67629.0,0.63075762]
[1730648015333,1.04682422,67630.0,67629.0,0.5643631]
[1730648015552,1.05182422,67630.0,67629.0,0.5643631]
[1730648016009,1.04682422,67630.0,67629.0,0.5643631]
[1730648016243,1.04682422,67630.0,67629.0,0.65281233]
[1730648016703,1.04682422,67630.0,67629.0,0.6004866]
[1730648016963,1.04682422,67630.0,67629.0,0.5873631]
[1730648017198,1.04682422,67630.0,67629.0,0.70455809]
[1730648017430,1.04682422,67630.0,67629.0,0.6613631]
[1730648017658,1.04682422,67630.0,67629.0,0.70455336]
[1730648018123,1.04682422,67630.0,67629.0,0.6613631]
[1730648018623,1.04682422,67630.0,67629.0,0.70454947]
[1730648019083,0.003634,67630.0,67629.0,0.70454947]
[1730648019305,0.003634,67630.0,67629.0,0.60754947]
[1730648019551,0.003634,67630.0,67629.0,1.2643631]
[1730648020023,0.002634,67630.0,67629.0,1.2503631]
[1730648020274,0.002634,67630.0,67629.0,0.5503631]
[1730648021042,0.006634,67630.0,67629.0,0.2904981]
[1730648021283,0.006634,67630.0,67629.0,0.000817]
[1730648021284,1.24948722,67630.0,67629.0,0.000817]
[1730648021534,1.24948722,67630.0,67629.0,0.014817]
[1730648021768,1.32508722,67630.0,67629.0,0.000817]
[1730648022006,1.32708722,67630.0,67629.0,0.000817]
[1730648022252,1.32708722,67630.0,67629.0,0.028817]
[1730648022495,1.32708722,67630.0,67629.0,0.014817]
[1730648022725,1.32708722,67630.0,67629.0,0.000817]
[1730648023191,1.47291296,67630.0,67629.0,0.000817]
[1730648023440,1.32708722,67630.0,67629.0,0.000817]
[1730648023902,1.33208722,67630.0,67629.0,0.000817]
[1730648024555,1.33008722,67630.0,67629.0,0.001817]
[1730648025069,1.33208722,67630.0,67629.0,0.001817]
[1730648026496,0.01,67621.0,67620.0,0.04425239]
[1730648026714,0.01,67621.0,67620.0,0.33793443]
[1730648028044,0.01,67621.0,67620.0,0.35193443]
[1730648028045,0.005,67621.0,67620.0,0.35193443]
[1730648028260,1.04637322,67626.0,67621.0,0.295762]
[1730648028480,1.04137322,67626.0,67625.0,0.147874]
[1730648028706,1.04637322,67626.0,67625.0,0.29367104]
[1730648028976,1.04137322,67626.0,67625.0,0.36004097]
[1730648029213,1.04137322,67626.0,67625.0,0.50550862]
[1730648029448,1.04137322,67626.0,67625.0,0.60550862]
[1730648029675,1.04137322,67626.0,67625.0,0.61301862]
[1730648029894,1.04137322,67626.0,67625.0,0.62601862]
[1730648030110,1.04137322,67626.0,67625.0,0.55964869]
[1730648030559,0.001634,67630.0,67629.0,0.247865]
[1730648030795,0.001634,67630.0,67629.0,0.62740441]
[1730648031013,0.001634,67630.0,67629.0,0.63491515]
[1730648031227,0.001634,67630.0,67629.0,0.65703739]
[1730648031453,0.001634,67630.0,67629.0,0.54642913]
[1730648031910,0.001634,67630.0,67629.0,0.58964348]
[1730648032360,0.001634,67630.0,67629.0,0.59064348]
[1730648032880,0.001634,67630.0,67629.0,0.58964348]
[1730648033095,0.002634,67630.0,67629.0,0.58964348]
[1730648033568,0.002634,67630.0,67629.0,0.60364348]
[1730648034277,0.002634,67630.0,67629.0,0.59613274]
[1730648034499,0.001634,67630.0,67629.0,0.60364282]
[1730648034707,0.001634,67630.0,67629.0,0.60347411]
[1730648034931,0.001634,67630.0,67629.0,0.61747411]
[1730648035151,0.001634,67630.0,67629.0,0.65359761]
[1730648037169,0.001634,67630.0,67629.0,0.64047411]
[1730648038693,0.001634,67630.0,67629.0,1.34047411]
[1730648039602,0.001634,67630.0,67629.0,1.34129111]
[1730648040486,0.001634,67630.0,67629.0,1.31829111]
[1730648040944,0.001634,67630.0,67629.0,1.27507676]
[1730648041160,1.04300722,67630.0,67629.0,1.27507676]
[1730648041593,1.04300722,67630.0,67629.0,0.68569637]
[1730648042246,1.04300722,67630.0,67629.0,0.57466667]
[1730648042472,1.04300722,67630.0,67629.0,0.6852926]
[1730648043181,1.21493134,67630.0,67629.0,0.38583884]
[1730648043426,1.29553134,67630.0,67629.0,0.028817]
[1730648043660,1.44539434,67630.0,67629.0,0.028817]
[1730648043874,1.44539434,67630.0,67614.0,0.148714]
[1730648043875,0.01,67615.0,67614.0,0.148714]
[1730648044093,1.02600369,67615.0,67614.0,0.33877335]
[1730648044319,1.10315622,67615.0,67614.0,0.3387727]
[1730648044556,1.10315622,67615.0,67614.0,0.29451104]
[1730648045460,1.10315622,67615.0,67614.0,0.30851104]
[1730648045693,1.10315622,67615.0,67614.0,0.32251104]
[1730648046572,1.09815622,67615.0,67614.0,0.32251104]
[1730648047926,1.01255622,67615.0,67614.0,0.42251104]
[1730648048179,1.01255622,67615.0,67614.0,0.56764026]
[1730648048631,0.22159028,67636.0,67629.0,0.270865]
[1730648048845,0.22659028,67636.0,67629.0,0.41666204]
[1730648049057,0.22659028,67636.0,67629.0,0.39366204]
[1730648049277,0.005,67635.0,67629.0,0.39366204]
[1730648049695,0.22159028,67636.0,67629.0,0.39366204]
[1730648049926,0.002634,67630.0,67629.0,0.39466204]
[1730648050143,0.002634,67630.0,67629.0,0.43888635]
[1730648050803,0.002634,67630.0,67629.0,0.44088595]
[1730648050804,0.003634,67630.0,67629.0,0.44088595]
[1730648051674,0.003634,67630.0,67629.0,0.40369838]
[1730648051911,0.003634,67630.0,67629.0,0.47003425]
[1730648052165,0.003634,67630.0,67629.0,0.61298821]
[1730648052383,0.003634,67630.0,67629.0,0.40369838]
[1730648052859,0.003634,67630.0,67629.0,0.47003425]
[1730648053088,0.003634,67630.0,67629.0,0.40369838]
[1730648053760,0.003634,67630.0,67629.0,0.47003425]
[1730648054176,0.003634,67630.0,67629.0,0.40369838]
[1730648058331,0.003634,67630.0,67629.0,0.44791735]
[1730648058555,0.003634,67630.0,67629.0,0.63400418]
[1730648059179,0.003634,67630.0,67629.0,0.5455607]
[1730648059397,0.003634,67630.0,67629.0,0.40369838]
[1730648059610,0.003634,67630.0,67629.0,0.61216317]
[1730648059873,0.003634,67630.0,67629.0,0.54582884]
[1730648060303,0.003634,67630.0,67629.0,0.6121576]
[1730648060528,0.003634,67630.0,67629.0,0.54582884]
[1730648060960,0.003634,67630.0,67629.0,0.65726612]
[1730648061828,0.003634,67630.0,67629.0,0.65808312]
[1730648062035,0.003634,67630.0,67629.0,0.56964584]
[1730648063113,0.003634,67630.0,67629.0,0.65808312]
[1730648063974,0.003634,67630.0,67629.0,1.35808312]
[1730648064219,0.008634,67630.0,67629.0,1.23508312]
[1730648064438,0.138234,67630.0,67629.0,0.99747904]
[1730648064657,0.133234,67630.0,67629.0,0.99747904]
[1730648064883,0.99374833,67630.0,67629.0,0.29747904]
[1730648065125,0.86914833,67630.0,67629.0,0.29447904]
[1730648065550,0.87114833,67630.0,67629.0,0.42247904]
[1730648065757,0.87014833,67630.0,67629.0,0.40847904]
[1730648066179,0.87114833,67630.0,67629.0,0.42247904]
[1730648066388,0.87114833,67630.0,67629.0,0.65417232]
[1730648066599,0.87114833,67630.0,67629.0,0.58774031]
[1730648066813,0.87014833,67630.0,67629.0,0.66217759]
[1730648067033,0.87114833,67630.0,67629.0,0.67617759]
[1730648067250,0.87114833,67630.0,67629.0,0.66218725]
[1730648067495,0.87114833,67630.0,67629.0,0.55974031]
[1730648067496,0.87014833,67630.0,67629.0,0.55974031]
[1730648067736,0.87014833,67630.0,67629.0,0.57374031]
[1730648068161,0.87014833,67630.0,67629.0,0.64008002]
[1730648068802,0.87114833,67630.0,67629.0,0.63108002]
[1730648069033,0.87114833,67630.0,67629.0,0.42247904]
[1730648069240,0.87114833,67630.0,67629.0,0.46670819]
[1730648070146,0.87114833,67630.0,67629.0,0.42247904]
[1730648070624,1.07384533,67630.0,67629.0,0.17461404]
[1730648070837,1.15374533,67630.0,67629.0,0.17461404]
[1730648071051,1.16074533,67630.0,67629.0,0.028817]
[1730648071493,1.15874533,67630.0,67629.0,0.028817]
[1730648071709,1.15274533,67630.0,67629.0,0.014817]
[1730648071936,1.15374533,67630.0,67629.0,0.026817]
[1730648072150,1.00488233,67630.0,67629.0,0.160682]
[1730648072364,1.00388233,67630.0,67629.0,0.148682]
[1730648072791,1.00388233,67630.0,67629.0,0.001817]
[1730648073218,0.001634,67631.0,67629.0,0.31847904]
[1730648073432,0.001634,67631.0,67630.0,0.31666004]
[1730648073857,0.001634,67631.0,67630.0,0.36090242]
[1730648074079,0.001634,67631.0,67630.0,0.31666004]
[1730648074334,0.001634,67631.0,67630.0,0.55997651]
[1730648074540,0.002634,67631.0,67630.0,0.55997651]
[1730648074741,0.002634,67631.0,67630.0,0.67058416]
[1730648075165,0.002634,67631.0,67630.0,0.55997651]
[1730648075392,0.001634,67631.0,67630.0,0.55997651]
[1730648075648,0.002634,67631.0,67630.0,0.57197651]
[1730648076267,0.002634,67631.0,67630.0,0.68258089]
[1730648076899,0.003634,67631.0,67630.0,0.69884417]
[1730648077337,0.003634,67631.0,67630.0,0.58754917]
[1730648077990,0.001634,67631.0,67630.0,0.56654917]
[1730648078416,0.003634,67631.0,67630.0,0.59454917]
[1730648080148,0.003634,67631.0,67630.0,0.63775857]
[1730648081317,0.003634,67631.0,67630.0,0.63912457]
[1730648081751,0.003634,67631.0,67630.0,0.71312457]
[1730648083273,0.003634,67631.0,67630.0,1.41312457]
[1730648083691,0.003634,67631.0,67630.0,1.60902286]
[1730648083907,0.003634,67631.0,67630.0,1.41312457]
[1730648084114,0.001634,67631.0,67630.0,1.38512457]
[1730648084334,0.001634,67631.0,67630.0,1.39912457]
[1730648084547,0.001634,67631.0,67630.0,1.60900643]
[1730648085073,0.001634,67631.0,67630.0,1.41312457]
[1730648086192,0.001634,67631.0,67630.0,1.60898479]
[1730648087272,0.001634,67631.0,67630.0,1.47228357]
[1730648087481,0.001634,67631.0,67630.0,1.66809857]
[1730648088598,0.001634,67631.0,67630.0,1.47228357]
[1730648089425,0.001634,67631.0,67630.0,1.66809857]
[1730648089658,0.001634,67631.0,67630.0,0.96809857]
[1730648091846,0.22159028,67650.0,67640.0,0.1]
[1730648092067,0.22159028,67650.0,67649.0,0.33712621]
[1730648092300,0.22159028,67650.0,67649.0,0.41344685]
[1730648092526,0.001632,67652.0,67651.0,0.147817]
[1730648092743,0.001632,67652.0,67651.0,0.33712698]
[1730648092972,0.001632,67652.0,67651.0,0.46933306]
[1730648093185,0.001632,67652.0,67651.0,0.64764684]
[1730648093409,0.001632,67652.0,67651.0,0.55923989]
[1730648093619,0.001632,67652.0,67651.0,0.66974857]
[1730648094271,0.001632,67652.0,67651.0,0.55923989]
[1730648094492,0.001632,67652.0,67651.0,0.57023989]
[1730648095045,0.001632,67652.0,67651.0,0.74598408]
[1730648095306,0.001632,67652.0,67651.0,0.73498408]
[1730648095521,0.001632,67652.0,67651.0,0.61537366]
[1730648095743,0.001632,67652.0,67651.0,0.60237366]
[1730648095969,0.001632,67652.0,67651.0,0.60373966]
[1730648096289,0.001632,67652.0,67651.0,1.31773966]
[1730648096497,1e-06,67652.0,67651.0,1.30373966]
[1730648096717,0.001632,67656.0,67655.0,0.272174]
[1730648096933,0.001632,67656.0,67655.0,0.6066861]
[1730648097152,0.001632,67656.0,67655.0,1.30373066]
[1730648097394,0.22159028,67665.0,67664.0,0.272155]
[1730648097599,0.22159028,67665.0,67664.0,0.56057789]
[1730648097818,0.29939028,67672.0,67669.0,0.247778]
[1730648098031,0.29939028,67672.0,67669.0,0.56215604]
[1730648098242,0.0778,67672.0,67669.0,0.41657504]
[1730648098467,0.0778,67672.0,67669.0,0.48272291]
[1730648099324,0.0778,67672.0,67669.0,1.18272408]
[1730648099537,0.0778,67672.0,67669.0,1.11657504]
[1730648099750,0.0778,67672.0,67669.0,1.13057504]
[1730648100214,0.0778,67672.0,67669.0,1.14457504]
[1730648100869,0.0778,67672.0,67669.0,0.44457504]
[1730648102258,0.005266,67677.0,67669.0,0.44457504]
[1730648102931,0.001632,67677.0,67669.0,0.44457504]
[1730648103136,0.005266,67677.0,67669.0,0.44457504]
[1730648104087,0.005266,67677.0,67669.0,0.45183898]
[1730648104533,0.010266,67670.0,67669.0,0.32157504]
[1730648104743,0.010266,67670.0,67669.0,0.17379704]
[1730648105629,0.005266,67670.0,67669.0,0.17379704]
[1730648105865,0.010266,67670.0,67669.0,0.17379704]
[1730648106548,0.012266,67670.0,67669.0,0.32157504]
[1730648107156,0.012266,67670.0,67669.0,0.30757504]
[1730648107576,0.012266,67670.0,67669.0,0.32157504]
[1730648108001,0.010266,67670.0,67669.0,0.32157504]
[1730648108211,0.010266,67670.0,67669.0,0.29357504]
[1730648108627,0.010266,67670.0,67669.0,0.31257504]
[1730648108805,0.010266,67670.0,67669.0,0.29857504]
[1730648109244,0.010266,67670.0,67669.0,0.30957504]
[1730648109444,0.87941433,67670.0,67669.0,0.30957504]
[1730648110819,0.87941433,67670.0,67669.0,0.15679704]
[1730648111020,1.09845702,67670.0,67669.0,0.011]
[1730648111219,1.02918933,67670.0,67669.0,0.011]
[1730648111479,1.03918933,67670.0,67669.0,0.011]
[1730648111631,1.03918933,67670.0,67669.0,0.02]
[1730648112613,1.03918933,67670.0,67669.0,0.009]
[1730648112815,1.03918933,67670.0,67669.0,0.01]
[1730648113229,1.03918933,67670.0,67669.0,0.009]
[1730648113655,1.03918933,67670.0,67656.0,0.000817]
[1730648113656,0.008634,67657.0,67656.0,0.000817]
[1730648113894,0.008634,67657.0,67656.0,0.14661404]
[1730648114077,0.008634,67657.0,67656.0,0.29442004]
[1730648115338,0.87778233,67657.0,67656.0,0.30442004]
[1730648117622,0.87778233,67657.0,67656.0,0.31242004]
[1730648117840,0.87278233,67657.0,67656.0,0.31242004]
[1730648119102,0.87278233,67657.0,67656.0,0.30242004]
[1730648119445,0.87278233,67657.0,67656.0,0.31642004]
[1730648119651,0.87278233,67657.0,67656.0,0.30842004]
[1730648120488,0.87278233,67657.0,67656.0,0.29442004]
[1730648120976,0.87278233,67657.0,67656.0,0.30742004]
[1730648122147,0.87278233,67657.0,67656.0,0.32142004]
[1730648122403,0.87278233,67657.0,67656.0,0.30742004]
[1730648122884,0.87278233,67657.0,67656.0,0.32142004]
[1730648123592,0.86914833,67657.0,67656.0,0.42142004]
[1730648123848,0.86914833,67657.0,67656.0,0.44442004]
[1730648124505,0.86914833,67657.0,67656.0,0.43142004]
[1730648124940,0.86914833,67657.0,67656.0,0.44542004]
[1730648125157,0.86914833,67657.0,67656.0,0.43142004]
[1730648125435,0.86914833,67657.0,67656.0,0.44542004]
[1730648126546,0.86914833,67657.0,67656.0,0.48947047]
[1730648127101,0.003634,67663.0,67662.0,0.147793]
[1730648127329,0.003634,67665.0,67664.0,0.147789]
[1730648127565,0.003634,67665.0,67664.0,0.29358604]
[1730648127815,0.003634,67666.0,67665.0,0.247786]
[1730648128015,0.003634,67667.0,67666.0,0.147784]
[1730648128242,0.003634,67667.0,67666.0,0.29358104]
[1730648128471,0.003634,67667.0,67666.0,0.14579704]
[1730648128688,0.003634,67667.0,67666.0,0.29358104]
[1730648129996,0.003634,67667.0,67666.0,0.30658104]
[1730648130546,0.003634,67667.0,67666.0,0.31758104]
[1730648130989,0.91524833,67668.0,67667.0,0.147782]
[1730648131209,0.91524833,67668.0,67667.0,0.29357904]
[1730648131210,0.91888233,67668.0,67667.0,0.29357904]
[1730648131664,0.91524833,67668.0,67667.0,0.29357904]
[1730648131885,0.001632,67670.0,67669.0,0.147778]
[1730648132042,0.001632,67670.0,67669.0,0.39357504]
[1730648132244,0.001632,67670.0,67669.0,0.41657504]
[1730648132451,0.001632,67670.0,67669.0,0.48282252]
[1730648132664,0.001632,67670.0,67669.0,0.55570146]
[1730648132851,0.001632,67670.0,67669.0,0.64403144]
[1730648133293,0.001632,67670.0,67669.0,0.65485652]
[1730648134414,0.001632,67670.0,67669.0,0.56652734]
[1730648134589,0.001632,67670.0,67669.0,0.67993881]
[1730648134739,0.001632,67670.0,67669.0,0.56952734]
[1730648134951,0.001632,67670.0,67669.0,0.57787518]
[1730648135170,0.001632,67670.0,67669.0,0.71036895]
[1730648135385,0.001632,67670.0,67669.0,0.57787518]
[1730648135600,0.001632,67670.0,67669.0,0.69636895]
[1730648135801,0.001632,67670.0,67669.0,0.54987518]
[1730648136002,0.001632,67670.0,67669.0,0.47507518]
[1730648136633,0.001632,67670.0,67669.0,0.46107518]
[1730648136857,0.001632,67670.0,67669.0,0.54987518]
[1730648137107,0.001632,67677.0,67676.0,0.247762]
[1730648137322,0.001632,67677.0,67676.0,0.45969318]
[1730648138164,0.001632,67677.0,67676.0,0.41655904]
[1730648138360,0.077232,67677.0,67676.0,0.41655904]
[1730648138569,0.080866,67677.0,67676.0,0.39355904]
[1730648138788,0.085866,67677.0,67676.0,0.39355904]
[1730648139004,0.085866,67677.0,67676.0,0.40755904]
[1730648139221,0.085866,67677.0,67676.0,0.42155904]
[1730648139858,0.085866,67677.0,67676.0,0.40755904]
[1730648140060,0.085866,67677.0,67676.0,0.42055904]
[1730648140314,0.085866,67677.0,67676.0,0.17279704]
[1730648140315,0.95501433,67677.0,67676.0,0.17279704]
[1730648140535,1.10277433,67677.0,67676.0,0.15979704]
[1730648140785,1.10277433,67677.0,67668.0,0.147779]
[1730648140786,0.002,67672.0,67668.0,0.147779]
[1730648141019,0.003634,67670.0,67669.0,0.61516532]
[1730648141235,0.003634,67670.0,67669.0,0.39357504]
[1730648141450,0.079234,67670.0,67669.0,0.39357504]
[1730648142171,0.084234,67670.0,67669.0,0.24579704]
[1730648142408,0.130434,67670.0,67669.0,0.15879704]
[1730648142630,0.130434,67670.0,67669.0,0.30657504]
[1730648142850,0.130434,67670.0,67669.0,0.15879704]
[1730648143075,0.130434,67670.0,67669.0,0.14579704]
[1730648143303,0.132434,67670.0,67669.0,0.14579704]
[1730648143529,0.130434,67670.0,67669.0,0.14579704]
[1730648143971,0.130434,67670.0,67669.0,0.15679704]
[1730648144440,0.132434,67670.0,67669.0,0.16179704]
[1730648144673,0.132434,67670.0,67669.0,0.15679704]
[1730648144932,0.132434,67670.0,67669.0,0.30457504]
[1730648144933,0.99958233,67670.0,67669.0,0.30457504]
[1730648145157,0.99958233,67670.0,67669.0,0.16779704]
[1730648145158,1.00058233,67670.0,67669.0,0.16779704]
[1730648146544,1.00258233,67670.0,67669.0,0.16779704]
[1730648147236,1.00058233,67670.0,67669.0,0.16779704]
[1730648148866,1.00258233,67670.0,67669.0,0.16779704]
[1730648149103,1.00058233,67670.0,67669.0,0.31557504]
[1730648149335,1.00058233,67670.0,67669.0,0.16779704]
[1730648150079,1.00058233,67670.0,67669.0,0.31557504]
[1730648150296,1.00058233,67670.0,67669.0,0.16779704]
[1730648150518,1.00258233,67670.0,67669.0,0.16779704]
[1730648152272,1.00058233,67670.0,67669.0,0.31557504]
[1730648155235,0.87014833,67670.0,67669.0,0.43857504]
[1730648155483,0.87014833,67670.0,67669.0,0.41557504]
[1730648155728,0.99904833,67670.0,67669.0,0.41557504]
[1730648156165,0.99904833,67670.0,67669.0,0.26779704]
[1730648156414,0.99904833,67670.0,67669.0,0.14579704]
[1730648156835,0.99904833,67670.0,67669.0,0.14661404]
[1730648158532,1.00268233,67670.0,67669.0,0.14661404]
[1730648159168,0.99904833,67670.0,67669.0,0.14661404]
[1730648159379,1.00268233,67670.0,67669.0,0.29439204]
[1730648160668,1.00268233,67670.0,67669.0,0.14661404]
[1730648160872,1.00268233,67670.0,67669.0,0.29439204]
[1730648161245,1.00768233,67670.0,67669.0,0.000817]
[1730648161447,1.15745733,67670.0,67669.0,0.000817]
[1730648162108,1.15545733,67670.0,67669.0,0.000817]
[1730648162754,1.15745733,67670.0,67669.0,0.000817]
[1730648163370,1.15545733,67670.0,67669.0,0.000817]
[1730648163577,1.00768233,67670.0,67669.0,0.000817]
[1730648163997,1.15545733,67670.0,67669.0,0.000817]
[1730648164201,1.00768233,67670.0,67669.0,0.000817]
[1730648165668,1.00268233,67670.0,67669.0,0.14661404]
[1730648165901,1.00268233,67670.0,67669.0,0.29439204]
[1730648166135,0.87378233,67670.0,67669.0,0.29439204]
[1730648167457,0.87014833,67670.0,67669.0,0.29439204]
[1730648168748,0.87378233,67670.0,67669.0,0.29439204]
[1730648169165,0.87014833,67670.0,67669.0,0.29439204]
[1730648169784,0.87014833,67670.0,67669.0,0.34595731]
[1730648170000,0.87014833,67670.0,67669.0,0.42473926]
[1730648170215,0.87178233,67670.0,67669.0,0.56446482]
[1730648170641,0.87178233,67670.0,67669.0,0.8142974]
[1730648171057,0.87078233,67670.0,67669.0,0.68164323]
[1730648171562,0.87278233,67670.0,67669.0,0.70864323]
[1730648171783,0.87278233,67670.0,67669.0,0.69574542]
[1730648171784,0.87178233,67670.0,67669.0,0.69574542]
[1730648171988,0.003634,67670.0,67669.0,0.84276381]
[1730648172206,0.002634,67670.0,67669.0,0.70378968]
[1730648172416,0.002634,67670.0,67669.0,0.89198096]
[1730648172632,0.002634,67670.0,67669.0,0.69611142]
[1730648173105,0.002634,67670.0,67669.0,0.71011142]
[1730648173106,0.003634,67670.0,67669.0,0.71011142]
[1730648174375,0.003634,67670.0,67669.0,0.79891142]
[1730648174802,0.003634,67670.0,67669.0,0.71011142]
[1730648178879,0.003634,67670.0,67669.0,0.76864453]
[1730648179062,0.003634,67670.0,67669.0,0.66501142]
[1730648179282,0.003634,67670.0,67669.0,0.79754453]
[1730648179489,0.003634,67670.0,67669.0,0.66501142]
[1730648179712,0.003634,67670.0,67669.0,0.79753174]
[1730648180218,0.003634,67670.0,67669.0,0.66501142]
[1730648180450,0.003634,67670.0,67669.0,0.52518367]
[1730648180667,0.003634,67670.0,67669.0,0.66423391]
[1730648180895,0.003634,67670.0,67669.0,0.79674347]
[1730648181361,0.003634,67670.0,67669.0,0.79674703]
[1730648181594,0.003634,67670.0,67669.0,0.79674135]
[1730648181828,0.003634,67670.0,67669.0,0.66423391]
[1730648184250,0.003634,67670.0,67669.0,1.36423391]
[1730648184659,0.003634,67670.0,67669.0,1.43823391]
[1730648185108,0.003634,67670.0,67669.0,1.43794301]
[1730648185345,1e-06,67670.0,67669.0,1.88798367]
[1730648185774,0.001632,67677.0,67676.0,0.272128]
[1730648185988,0.001674,67686.0,67685.0,0.359543]
[1730648186198,0.001674,67686.0,67685.0,0.41654004]
[1730648186427,0.008933,67692.0,67691.0,0.149096]
[1730648186659,0.001674,67696.0,67692.0,0.360893]
[1730648186889,0.001674,67696.0,67692.0,0.50669004]
[1730648187514,0.001674,67696.0,67692.0,0.64916403]
[1730648188411,0.001674,67696.0,67692.0,0.52069004]
[1730648188412,0.002674,67693.0,67692.0,0.52069004]
[1730648189029,0.002674,67693.0,67692.0,1.22069004]
[1730648189238,0.002674,67693.0,67692.0,1.23469004]